[Event "Late-Titled-Tuesday-Blitz-July-09-2024"]
[Site "Chess.com"]
[Date "2024.07.09"]
[Round "11"]
[White "IlanSchnaider"]
[Black "KebabJangles"]
[Result "1/2-1/2"]
[WhiteElo "2806"]
[BlackElo "2411"]
[TimeControl "180+1"]
[EndTime "16:04:37 PDT"]
[Termination "Game drawn by repetition"]

1. e4 {[%clk 0:03:00.9]} 1... c5 {[%clk 0:02:57]} 2. Nf3 {[%clk 0:03:01]} 2...
e6 {[%clk 0:02:56.8]} 3. d4 {[%clk 0:03:01.1]} 3... cxd4 {[%clk 0:02:57.7]} 4.
Nxd4 {[%clk 0:03:01.7]} 4... a6 {[%clk 0:02:57.5]} 5. c4 {[%clk 0:03:01.7]} 5...
Nf6 {[%clk 0:02:57.2]} 6. Nc3 {[%clk 0:03:02]} 6... Bb4 {[%clk 0:02:57]} 7. Qd3
{[%clk 0:03:01.2]} 7... Qc7 {[%clk 0:02:52.3]} 8. a3 {[%clk 0:03:01.2]} 8... Be7
{[%clk 0:02:49.8]} 9. Be2 {[%clk 0:02:58.7]} 9... Nc6 {[%clk 0:02:49.1]} 10. O-O
{[%clk 0:02:58.8]} 10... Nxd4 {[%clk 0:02:38.6]} 11. Qxd4 {[%clk 0:02:58.9]}
11... d6 {[%clk 0:02:37.7]} 12. Bg5 {[%clk 0:02:55]} 12... h6 {[%clk 0:02:32.6]}
13. Bh4 {[%clk 0:02:54.5]} 13... O-O {[%clk 0:02:30.8]} 14. Rad1 {[%clk
0:02:54.2]} 14... Bd7 {[%clk 0:02:28.1]} 15. f4 {[%clk 0:02:26.8]} 15... Bc6
{[%clk 0:02:17.8]} 16. Bf3 {[%clk 0:02:04.3]} 16... Rfd8 {[%clk 0:02:12.6]} 17.
Bf2 {[%clk 0:01:52.8]} 17... b5 {[%clk 0:02:00.5]} 18. Kh1 {[%clk 0:01:45.2]}
18... Qb7 {[%clk 0:01:59.3]} 19. cxb5 {[%clk 0:01:43]} 19... axb5 {[%clk
0:01:58.5]} 20. Rfe1 {[%clk 0:01:42.9]} 20... Nd7 {[%clk 0:01:58.1]} 21. Qd2
{[%clk 0:01:37.6]} 21... Nb6 {[%clk 0:01:54.9]} 22. Qc2 {[%clk 0:00:58.9]} 22...
Nc4 {[%clk 0:01:51.6]} 23. Ne2 {[%clk 0:00:53.1]} 23... e5 {[%clk 0:01:45.8]}
24. f5 {[%clk 0:00:49.4]} 24... Bg5 {[%clk 0:01:41.3]} 25. Nc3 {[%clk
0:00:47.7]} 25... b4 {[%clk 0:01:26.5]} 26. Nd5 {[%clk 0:00:43.5]} 26... Bxd5
{[%clk 0:01:25.4]} 27. Rxd5 {[%clk 0:00:44.2]} 27... Rac8 {[%clk 0:01:10.9]} 28.
Qb3 {[%clk 0:00:41.9]} 28... Nd2 {[%clk 0:01:07]} 29. Qxb4 {[%clk 0:00:42.1]}
29... Qxb4 {[%clk 0:01:06.8]} 30. axb4 {[%clk 0:00:43]} 30... Nxf3 {[%clk
0:01:07.4]} 31. gxf3 {[%clk 0:00:43.1]} 31... Rc2 {[%clk 0:01:07.5]} 32. Bb6
{[%clk 0:00:42.5]} 32... Rb8 {[%clk 0:01:07]} 33. Rxd6 {[%clk 0:00:40.1]} 33...
Rxb2 {[%clk 0:01:07.3]} 34. Bc5 {[%clk 0:00:37.8]} 34... Bf4 {[%clk 0:01:07.4]}
35. Red1 {[%clk 0:00:36.4]} 35... Rxh2+ {[%clk 0:01:06]} 36. Kg1 {[%clk
0:00:36.6]} 36... Rb2 {[%clk 0:01:03.8]} 37. Rd8+ {[%clk 0:00:33.9]} 37... Rxd8
{[%clk 0:01:03.7]} 38. Rxd8+ {[%clk 0:00:34.8]} 38... Kh7 {[%clk 0:01:04.2]} 39.
Rd7 {[%clk 0:00:33]} 39... Kg8 {[%clk 0:01:04.2]} 40. Rb7 {[%clk 0:00:30.6]}
40... h5 {[%clk 0:01:03.9]} 41. Bf2 {[%clk 0:00:22.7]} 41... Rb1+ {[%clk
0:00:58]} 42. Kg2 {[%clk 0:00:22.8]} 42... Rb2 {[%clk 0:00:58.5]} 43. Kf1 {[%clk
0:00:19.4]} 43... Rb1+ {[%clk 0:00:57.9]} 44. Kg2 {[%clk 0:00:14.5]} 44... Rb2
{[%clk 0:00:57.9]} 45. Kf1 {[%clk 0:00:07.6]} 45... Rb1+ {[%clk 0:00:57.7]} 46.
Kg2 {[%clk 0:00:05.4]} 1/2-1/2

[Event "Late-Titled-Tuesday-Blitz-July-09-2024"]
[Site "Chess.com"]
[Date "2024.07.09"]
[Round "11"]
[White "tptagain"]
[Black "Fandorine"]
[Result "0-1"]
[WhiteElo "3040"]
[BlackElo "2949"]
[TimeControl "180+1"]
[EndTime "16:04:49 PDT"]
[Termination "Fandorine won by resignation"]

1. d4 {[%clk 0:03:00.9]} 1... Nf6 {[%clk 0:03:00.2]} 2. Nf3 {[%clk 0:03:01.5]}
2... g6 {[%clk 0:03:00.4]} 3. Bg5 {[%clk 0:03:01.9]} 3... Bg7 {[%clk 0:03:00.8]}
4. Nbd2 {[%clk 0:03:02.2]} 4... O-O {[%clk 0:02:59.1]} 5. e4 {[%clk 0:03:02]}
5... d6 {[%clk 0:02:59.5]} 6. h3 {[%clk 0:03:01.2]} 6... Nc6 {[%clk 0:02:59.7]}
7. Bb5 {[%clk 0:02:55.2]} 7... Nd7 {[%clk 0:02:47.9]} 8. c3 {[%clk 0:02:51.8]}
8... a6 {[%clk 0:02:47.5]} 9. Ba4 {[%clk 0:02:41.7]} 9... b5 {[%clk 0:02:37.7]}
10. Bc2 {[%clk 0:02:31.5]} 10... Qe8 {[%clk 0:02:37.8]} 11. O-O {[%clk
0:02:27.7]} 11... e5 {[%clk 0:02:32]} 12. d5 {[%clk 0:02:27]} 12... Ne7 {[%clk
0:02:31.1]} 13. a4 {[%clk 0:02:24.5]} 13... Nb6 {[%clk 0:01:48.4]} 14. axb5
{[%clk 0:02:17.6]} 14... axb5 {[%clk 0:01:49.3]} 15. Rxa8 {[%clk 0:02:15]} 15...
Nxa8 {[%clk 0:01:50.2]} 16. Qa1 {[%clk 0:02:04.4]} 16... Bd7 {[%clk 0:01:47.4]}
17. Qa7 {[%clk 0:02:01.3]} 17... h6 {[%clk 0:01:47.1]} 18. Bxe7 {[%clk
0:01:48.9]} 18... Qxe7 {[%clk 0:01:47.1]} 19. Ra1 {[%clk 0:01:49.3]} 19... Qd8
{[%clk 0:01:43.2]} 20. b4 {[%clk 0:01:21.4]} 20... Nb6 {[%clk 0:01:29.8]} 21.
Bd3 {[%clk 0:01:19.8]} 21... f5 {[%clk 0:01:21.8]} 22. Qb7 {[%clk 0:01:06.6]}
22... Na4 {[%clk 0:00:23.1]} 23. Bxb5 {[%clk 0:00:45.8]} 23... Bxb5 {[%clk
0:00:21.1]} 24. Qxb5 {[%clk 0:00:46.7]} 24... Nxc3 {[%clk 0:00:20.2]} 25. Qd3
{[%clk 0:00:41.8]} 25... Nxe4 {[%clk 0:00:19.6]} 26. Nxe4 {[%clk 0:00:42.7]}
26... fxe4 {[%clk 0:00:20.3]} 27. Qxe4 {[%clk 0:00:43.3]} 27... Kh7 {[%clk
0:00:15.7]} 28. g3 {[%clk 0:00:33.8]} 28... Qf6 {[%clk 0:00:07.4]} 29. Kg2
{[%clk 0:00:33.4]} 29... Qxf3+ {[%clk 0:00:03.6]} 30. Qxf3 {[%clk 0:00:29]}
30... Rxf3 {[%clk 0:00:04.5]} 0-1

[Event "Late-Titled-Tuesday-Blitz-July-09-2024"]
[Site "Chess.com"]
[Date "2024.07.09"]
[Round "11"]
[White "Boundless_Strike"]
[Black "bazar-wokzal"]
[Result "1-0"]
[WhiteElo "2818"]
[BlackElo "2657"]
[TimeControl "180+1"]
[EndTime "16:04:53 PDT"]
[Termination "Boundless_Strike won on time"]

1. d4 {[%clk 0:02:59.6]} 1... Nf6 {[%clk 0:02:59.3]} 2. Nc3 {[%clk 0:02:59.1]}
2... d5 {[%clk 0:02:58.9]} 3. e4 {[%clk 0:02:59.2]} 3... dxe4 {[%clk 0:02:54.1]}
4. f3 {[%clk 0:02:58.7]} 4... exf3 {[%clk 0:02:35.1]} 5. Nxf3 {[%clk 0:02:59.6]}
5... Bg4 {[%clk 0:02:34.2]} 6. h3 {[%clk 0:02:59.6]} 6... Bh5 {[%clk 0:02:33.4]}
7. g4 {[%clk 0:02:59.9]} 7... Bg6 {[%clk 0:02:33.3]} 8. Ne5 {[%clk 0:03:00.6]}
8... e6 {[%clk 0:02:33.2]} 9. Bg2 {[%clk 0:03:00.9]} 9... c6 {[%clk 0:02:32.3]}
10. h4 {[%clk 0:02:59.9]} 10... Bb4 {[%clk 0:02:22.9]} 11. O-O {[%clk
0:02:59.3]} 11... Bxc3 {[%clk 0:02:17.3]} 12. bxc3 {[%clk 0:02:58.5]} 12... Be4
{[%clk 0:01:57.2]} 13. Bxe4 {[%clk 0:02:57.8]} 13... Nxe4 {[%clk 0:01:57.1]} 14.
Qf3 {[%clk 0:02:58.5]} 14... O-O {[%clk 0:01:10.8]} 15. Qxe4 {[%clk 0:02:44.9]}
15... Qxh4 {[%clk 0:01:10.7]} 16. Kg2 {[%clk 0:02:24.7]} 16... f5 {[%clk
0:01:07.5]} 17. Qf3 {[%clk 0:02:21.3]} 17... Qe7 {[%clk 0:00:55.1]} 18. a4
{[%clk 0:02:01]} 18... c5 {[%clk 0:00:41.9]} 19. Ba3 {[%clk 0:01:59.1]} 19...
Na6 {[%clk 0:00:40.5]} 20. Rae1 {[%clk 0:01:41.5]} 20... Rf6 {[%clk 0:00:32.4]}
21. g5 {[%clk 0:01:23.6]} 21... Rff8 {[%clk 0:00:31]} 22. Qh5 {[%clk 0:01:16.2]}
22... g6 {[%clk 0:00:26.7]} 23. Nxg6 {[%clk 0:00:59.7]} 23... hxg6 {[%clk
0:00:25.8]} 24. Qxg6+ {[%clk 0:01:00.6]} 24... Qg7 {[%clk 0:00:26.1]} 25. Qxe6+
{[%clk 0:01:00.9]} 25... Qf7 {[%clk 0:00:25.8]} 26. Rxf5 {[%clk 0:00:45.1]}
26... Qxe6 {[%clk 0:00:21.7]} 27. Rxf8+ {[%clk 0:00:46]} 27... Rxf8 {[%clk
0:00:19]} 28. Rxe6 {[%clk 0:00:46.6]} 28... Rf5 {[%clk 0:00:18.9]} 29. g6 {[%clk
0:00:43.8]} 29... cxd4 {[%clk 0:00:09.9]} 30. cxd4 {[%clk 0:00:34.7]} 30... Ra5
{[%clk 0:00:09.7]} 31. Bd6 {[%clk 0:00:29.9]} 1-0

[Event "Late-Titled-Tuesday-Blitz-July-09-2024"]
[Site "Chess.com"]
[Date "2024.07.09"]
[Round "11"]
[White "noblerone"]
[Black "brm72"]
[Result "0-1"]
[WhiteElo "2468"]
[BlackElo "2643"]
[TimeControl "180+1"]
[EndTime "16:04:54 PDT"]
[Termination "brm72 won on time"]

1. d4 {[%clk 0:03:00.9]} 1... Nf6 {[%clk 0:02:59.9]} 2. Nf3 {[%clk 0:02:59.9]}
2... e6 {[%clk 0:03:00.4]} 3. Bg5 {[%clk 0:02:58.1]} 3... c5 {[%clk 0:03:00.3]}
4. e3 {[%clk 0:02:57.3]} 4... b6 {[%clk 0:02:59.7]} 5. Nbd2 {[%clk 0:02:56]}
5... Bb7 {[%clk 0:03:00.1]} 6. c3 {[%clk 0:02:56.3]} 6... d6 {[%clk 0:03:00]} 7.
Bd3 {[%clk 0:02:56.8]} 7... Nbd7 {[%clk 0:03:00]} 8. O-O {[%clk 0:02:54.6]} 8...
Be7 {[%clk 0:02:59.7]} 9. a4 {[%clk 0:02:54.6]} 9... a6 {[%clk 0:02:59.2]} 10.
Qe2 {[%clk 0:02:52.6]} 10... O-O {[%clk 0:02:58.3]} 11. e4 {[%clk 0:02:47]}
11... h6 {[%clk 0:02:57.7]} 12. Bh4 {[%clk 0:02:46.9]} 12... Nh5 {[%clk
0:02:54.7]} 13. Bxe7 {[%clk 0:02:21.4]} 13... Qxe7 {[%clk 0:02:55.6]} 14. g3
{[%clk 0:02:19.5]} 14... Nhf6 {[%clk 0:02:53.1]} 15. Rfe1 {[%clk 0:02:16.4]}
15... e5 {[%clk 0:02:52.2]} 16. dxe5 {[%clk 0:01:46.7]} 16... Nxe5 {[%clk
0:02:44.1]} 17. Nxe5 {[%clk 0:01:45.5]} 17... dxe5 {[%clk 0:02:45]} 18. Nc4
{[%clk 0:01:33.6]} 18... Qc7 {[%clk 0:02:44.7]} 19. f3 {[%clk 0:01:28.4]} 19...
b5 {[%clk 0:02:41.2]} 20. Ne3 {[%clk 0:01:27]} 20... c4 {[%clk 0:02:40.4]} 21.
Bc2 {[%clk 0:01:25.4]} 21... g6 {[%clk 0:02:38.1]} 22. Red1 {[%clk 0:01:19.9]}
22... Rfd8 {[%clk 0:02:37.3]} 23. axb5 {[%clk 0:01:18.3]} 23... axb5 {[%clk
0:02:36.5]} 24. Rxa8 {[%clk 0:01:17.8]} 24... Rxa8 {[%clk 0:02:36.1]} 25. Nd5
{[%clk 0:01:16.8]} 25... Bxd5 {[%clk 0:02:31.6]} 26. exd5 {[%clk 0:01:17.7]}
26... Rd8 {[%clk 0:02:30.9]} 27. Be4 {[%clk 0:01:11.9]} 27... Qc5+ {[%clk
0:02:17.3]} 28. Qf2 {[%clk 0:01:01.9]} 28... Qxf2+ {[%clk 0:02:12.9]} 29. Kxf2
{[%clk 0:01:01.8]} 29... Ne8 {[%clk 0:02:13]} 30. Ra1 {[%clk 0:01:00]} 30... f5
{[%clk 0:02:12]} 31. Bc2 {[%clk 0:00:57]} 31... Rxd5 {[%clk 0:02:11.8]} 32. Ke3
{[%clk 0:00:50.5]} 32... Kf7 {[%clk 0:02:03.2]} 33. Ra7+ {[%clk 0:00:47.6]}
33... Kf6 {[%clk 0:02:01.3]} 34. g4 {[%clk 0:00:38.6]} 34... f4+ {[%clk
0:01:58.7]} 35. Ke2 {[%clk 0:00:37.8]} 35... Rd6 {[%clk 0:01:39.8]} 36. Be4
{[%clk 0:00:34.6]} 36... Rb6 {[%clk 0:01:38.4]} 37. h4 {[%clk 0:00:33.1]} 37...
Nd6 {[%clk 0:01:36.9]} 38. Rh7 {[%clk 0:00:20.3]} 38... Nxe4 {[%clk 0:01:34.7]}
39. fxe4 {[%clk 0:00:21.2]} 39... b4 {[%clk 0:01:33.5]} 40. Rxh6 {[%clk
0:00:19.5]} 40... Kg7 {[%clk 0:01:33.4]} 41. g5 {[%clk 0:00:19.5]} 41... bxc3
{[%clk 0:01:32.6]} 42. bxc3 {[%clk 0:00:20.4]} 42... Rb2+ {[%clk 0:01:30.1]} 43.
Kd1 {[%clk 0:00:18.3]} 43... Rh2 {[%clk 0:01:29.5]} 44. Ke1 {[%clk 0:00:18.3]}
44... Rh3 {[%clk 0:01:27.2]} 45. Kd2 {[%clk 0:00:17.7]} 45... Re3 {[%clk
0:01:26.9]} 46. h5 {[%clk 0:00:17.8]} 46... gxh5 {[%clk 0:01:25.9]} 47. Rxh5
{[%clk 0:00:18.7]} 47... Kg6 {[%clk 0:01:24.8]} 48. Rh8 {[%clk 0:00:15.6]} 48...
Kxg5 {[%clk 0:01:23.9]} 49. Rg8+ {[%clk 0:00:15.3]} 49... Kf6 {[%clk 0:01:24]}
50. Rf8+ {[%clk 0:00:13.3]} 50... Ke7 {[%clk 0:01:23.7]} 51. Rc8 {[%clk
0:00:11.9]} 51... Rxe4 {[%clk 0:01:22.9]} 52. Rc5 {[%clk 0:00:11.8]} 52... Ke6
{[%clk 0:01:22.6]} 53. Rc8 {[%clk 0:00:11.5]} 53... Kf5 {[%clk 0:01:22.5]} 54.
Rf8+ {[%clk 0:00:11.3]} 54... Kg4 {[%clk 0:01:22.7]} 55. Rc8 {[%clk 0:00:12.2]}
55... Kf3 {[%clk 0:01:22.6]} 56. Rc7 {[%clk 0:00:10.3]} 56... Kf2 {[%clk
0:01:22.6]} 57. Rc8 {[%clk 0:00:09.4]} 57... f3 {[%clk 0:01:22.8]} 58. Rc7
{[%clk 0:00:04.4]} 58... Kg2 {[%clk 0:01:22.4]} 59. Rg7+ {[%clk 0:00:03.3]}
59... Kf1 {[%clk 0:01:22.4]} 60. Rc7 {[%clk 0:00:01.4]} 60... f2 {[%clk
0:01:22.6]} 0-1

[Event "Late-Titled-Tuesday-Blitz-July-09-2024"]
[Site "Chess.com"]
[Date "2024.07.09"]
[Round "11"]
[White "Kombinator01"]
[Black "talaicito"]
[Result "1-0"]
[WhiteElo "2482"]
[BlackElo "2333"]
[TimeControl "180+1"]
[EndTime "16:04:56 PDT"]
[Termination "Kombinator01 won on time"]

1. d4 {[%clk 0:02:53.5]} 1... e6 {[%clk 0:03:00]} 2. e4 {[%clk 0:02:51.5]} 2...
d5 {[%clk 0:03:00]} 3. exd5 {[%clk 0:02:52.4]} 3... exd5 {[%clk 0:02:59.9]} 4.
Nf3 {[%clk 0:02:53.3]} 4... Bd6 {[%clk 0:02:59.8]} 5. c4 {[%clk 0:02:53.9]} 5...
c6 {[%clk 0:02:57.4]} 6. Nc3 {[%clk 0:02:52.9]} 6... Ne7 {[%clk 0:02:47.1]} 7.
Bd3 {[%clk 0:02:51.5]} 7... dxc4 {[%clk 0:02:34]} 8. Bxc4 {[%clk 0:02:52.4]}
8... O-O {[%clk 0:02:34.2]} 9. O-O {[%clk 0:02:50.2]} 9... Nd7 {[%clk
0:02:34.2]} 10. Re1 {[%clk 0:02:47.4]} 10... Nb6 {[%clk 0:02:31.2]} 11. Bb3
{[%clk 0:02:47.1]} 11... Bg4 {[%clk 0:02:17.6]} 12. h3 {[%clk 0:02:47.4]} 12...
Bh5 {[%clk 0:02:10.8]} 13. Qd3 {[%clk 0:02:45.9]} 13... Bg6 {[%clk 0:02:06.4]}
14. Qe2 {[%clk 0:02:43.3]} 14... Ned5 {[%clk 0:02:02.8]} 15. Ne5 {[%clk
0:02:42.4]} 15... Qh4 {[%clk 0:01:44.2]} 16. Nxd5 {[%clk 0:02:39.9]} 16... Nxd5
{[%clk 0:01:40.8]} 17. Bxd5 {[%clk 0:02:28]} 17... cxd5 {[%clk 0:01:40.5]} 18.
Qg4 {[%clk 0:02:27.6]} 18... Qxg4 {[%clk 0:01:35.8]} 19. hxg4 {[%clk 0:02:28.5]}
19... Rfe8 {[%clk 0:01:25]} 20. Bf4 {[%clk 0:02:24.1]} 20... Bxe5 {[%clk
0:01:24]} 21. Bxe5 {[%clk 0:02:18.5]} 21... Rac8 {[%clk 0:01:21.3]} 22. Bd6
{[%clk 0:02:14.5]} 22... f6 {[%clk 0:01:17.3]} 23. a4 {[%clk 0:02:08.2]} 23...
a6 {[%clk 0:01:07.8]} 24. a5 {[%clk 0:02:07.6]} 24... Kf7 {[%clk 0:01:03.9]} 25.
Bc5 {[%clk 0:02:07.4]} 25... Bd3 {[%clk 0:00:59.6]} 26. f3 {[%clk 0:02:05.3]}
26... Rxe1+ {[%clk 0:00:58.1]} 27. Rxe1 {[%clk 0:02:04.6]} 27... Re8 {[%clk
0:00:58.7]} 28. Rc1 {[%clk 0:01:49.9]} 28... Re2 {[%clk 0:00:57.7]} 29. b4
{[%clk 0:01:50.1]} 29... Bc4 {[%clk 0:00:51.5]} 30. Kh2 {[%clk 0:01:45.9]} 30...
g6 {[%clk 0:00:50.5]} 31. Kg3 {[%clk 0:01:46.2]} 31... Ke6 {[%clk 0:00:47.1]}
32. Rh1 {[%clk 0:01:44.6]} 32... Rb2 {[%clk 0:00:38]} 33. Rxh7 {[%clk
0:01:42.7]} 33... Bf1 {[%clk 0:00:36.6]} 34. Rxb7 {[%clk 0:01:36.2]} 34... g5
{[%clk 0:00:32.3]} 35. f4 {[%clk 0:01:29.1]} 35... gxf4+ {[%clk 0:00:11.4]} 36.
Kxf4 {[%clk 0:01:25.8]} 36... Rf2+ {[%clk 0:00:11.8]} 37. Ke3 {[%clk 0:01:25.8]}
37... Re2+ {[%clk 0:00:11.3]} 38. Kf3 {[%clk 0:01:26.1]} 38... f5 {[%clk
0:00:11.4]} 39. g5 {[%clk 0:01:25.2]} 39... f4 {[%clk 0:00:07.4]} 40. Kxf4
{[%clk 0:01:23]} 40... Re4+ {[%clk 0:00:06.9]} 41. Kf3 {[%clk 0:01:22.3]} 41...
Kf5 {[%clk 0:00:06.2]} 42. g4+ {[%clk 0:01:11]} 42... Kxg5 {[%clk 0:00:05]} 43.
Rg7+ {[%clk 0:01:09.9]} 43... Kf6 {[%clk 0:00:05.2]} 44. Rg8 {[%clk 0:01:06.9]}
44... Be2+ {[%clk 0:00:04.3]} 45. Kg3 {[%clk 0:01:06.4]} 45... Kf7 {[%clk
0:00:04.7]} 46. Rg5 {[%clk 0:01:05.5]} 46... Kf6 {[%clk 0:00:02.3]} 47. Rxd5
{[%clk 0:00:59.2]} 47... Rxg4+ {[%clk 0:00:02.3]} 48. Kf2 {[%clk 0:00:59.3]}
48... Bb5 {[%clk 0:00:01]} 49. Rd6+ {[%clk 0:00:58.2]} 49... Kf7 {[%clk
0:00:01.1]} 50. Rb6 {[%clk 0:00:58.2]} 1-0

[Event "Late-Titled-Tuesday-Blitz-July-09-2024"]
[Site "Chess.com"]
[Date "2024.07.09"]
[Round "11"]
[White "OparinGrigoriy"]
[Black "SpeedofLight0"]
[Result "1/2-1/2"]
[WhiteElo "3024"]
[BlackElo "3118"]
[TimeControl "180+1"]
[EndTime "16:04:58 PDT"]
[Termination "Game drawn by repetition"]

1. d4 {[%clk 0:03:00.9]} 1... Nf6 {[%clk 0:02:59]} 2. Nf3 {[%clk 0:03:00.9]}
2... g6 {[%clk 0:02:59.2]} 3. g3 {[%clk 0:02:59.5]} 3... Bg7 {[%clk 0:02:59.5]}
4. Bg2 {[%clk 0:03:00.1]} 4... O-O {[%clk 0:02:59.9]} 5. c4 {[%clk 0:03:00.7]}
5... b6 {[%clk 0:03:00]} 6. O-O {[%clk 0:03:00.7]} 6... Bb7 {[%clk 0:03:00.3]}
7. Re1 {[%clk 0:03:01.1]} 7... e6 {[%clk 0:03:00.1]} 8. Bf4 {[%clk 0:02:56.1]}
8... d6 {[%clk 0:02:49.6]} 9. Qc2 {[%clk 0:02:55.7]} 9... Be4 {[%clk 0:02:46.8]}
10. Qd2 {[%clk 0:02:55.9]} 10... c5 {[%clk 0:02:29.9]} 11. Nc3 {[%clk
0:02:55.7]} 11... Bb7 {[%clk 0:02:28.7]} 12. dxc5 {[%clk 0:02:38.8]} 12... dxc5
{[%clk 0:02:28.4]} 13. Rad1 {[%clk 0:02:39.3]} 13... Qxd2 {[%clk 0:02:24.4]} 14.
Rxd2 {[%clk 0:02:40.2]} 14... Nc6 {[%clk 0:02:20.6]} 15. Ne5 {[%clk 0:02:39.7]}
15... Nxe5 {[%clk 0:02:09.8]} 16. Bxe5 {[%clk 0:02:40.6]} 16... Bxg2 {[%clk
0:02:09.5]} 17. Kxg2 {[%clk 0:02:40.8]} 17... Rfd8 {[%clk 0:01:37.9]} 18. Red1
{[%clk 0:02:40.6]} 18... Rxd2 {[%clk 0:01:37.9]} 19. Rxd2 {[%clk 0:02:41.5]}
19... Ne4 {[%clk 0:01:36.2]} 20. Nxe4 {[%clk 0:02:40.3]} 20... Bxe5 {[%clk
0:01:36.6]} 21. b3 {[%clk 0:02:35.2]} 21... f5 {[%clk 0:01:33.1]} 22. Ng5 {[%clk
0:02:34.6]} 22... Re8 {[%clk 0:01:26.3]} 23. Rd7 {[%clk 0:02:16.9]} 23... Bf6
{[%clk 0:01:25.6]} 24. h4 {[%clk 0:02:01]} 24... h6 {[%clk 0:01:22.9]} 25. Nh3
{[%clk 0:01:58.2]} 25... Re7 {[%clk 0:01:21.5]} 26. Rd8+ {[%clk 0:01:52.4]}
26... Kf7 {[%clk 0:01:19.9]} 27. Nf4 {[%clk 0:01:52.7]} 27... Rc7 {[%clk
0:01:07.7]} 28. Rd6 {[%clk 0:01:09.1]} 28... Be5 {[%clk 0:01:04.3]} 29. Rd8
{[%clk 0:01:09.1]} 29... g5 {[%clk 0:01:02.2]} 30. hxg5 {[%clk 0:01:06.3]} 30...
hxg5 {[%clk 0:01:03.1]} 31. Nd3 {[%clk 0:01:02]} 31... Bf6 {[%clk 0:01:03]} 32.
Ra8 {[%clk 0:01:02.1]} 32... e5 {[%clk 0:01:01.3]} 33. f3 {[%clk 0:00:58]} 33...
Rd7 {[%clk 0:01:01.3]} 34. Nf2 {[%clk 0:00:57.8]} 34... Ke6 {[%clk 0:00:50.5]}
35. g4 {[%clk 0:00:55.8]} 35... fxg4 {[%clk 0:00:46.2]} 36. Nxg4 {[%clk
0:00:53.3]} 36... Rd2 {[%clk 0:00:44.4]} 37. Rxa7 {[%clk 0:00:53]} 37... Rxe2+
{[%clk 0:00:43.9]} 38. Kg3 {[%clk 0:00:50.3]} 38... Be7 {[%clk 0:00:39.3]} 39.
Nf2 {[%clk 0:00:44.8]} 39... g4 {[%clk 0:00:35.3]} 40. Nxg4 {[%clk 0:00:40.8]}
40... Bg5 {[%clk 0:00:35.2]} 41. Ra6 {[%clk 0:00:31.6]} 41... Bf4+ {[%clk
0:00:35.1]} 42. Kh3 {[%clk 0:00:29.9]} 42... Kf5 {[%clk 0:00:33.4]} 43. Rxb6
{[%clk 0:00:29.7]} 43... Rxa2 {[%clk 0:00:33.4]} 44. Kh4 {[%clk 0:00:28.9]}
44... Bg5+ {[%clk 0:00:30.3]} 45. Kg3 {[%clk 0:00:29.1]} 45... Bf4+ {[%clk
0:00:29.8]} 46. Kh4 {[%clk 0:00:28.4]} 46... Bg5+ {[%clk 0:00:30.1]} 47. Kg3
{[%clk 0:00:20.9]} 47... Bf4+ {[%clk 0:00:29.7]} 48. Kh4 {[%clk 0:00:16.5]}
1/2-1/2

[Event "Late-Titled-Tuesday-Blitz-July-09-2024"]
[Site "Chess.com"]
[Date "2024.07.09"]
[Round "11"]
[White "protectiago"]
[Black "Os55555"]
[Result "1-0"]
[WhiteElo "2179"]
[BlackElo "2275"]
[TimeControl "180+1"]
[EndTime "16:04:59 PDT"]
[Termination "protectiago won by checkmate"]

1. d4 {[%clk 0:02:56.5]} 1... Nf6 {[%clk 0:02:59.4]} 2. c4 {[%clk 0:02:55.2]}
2... e6 {[%clk 0:02:58.4]} 3. g3 {[%clk 0:02:53.4]} 3... d5 {[%clk 0:02:57.6]}
4. Nf3 {[%clk 0:02:52.6]} 4... Be7 {[%clk 0:02:57.9]} 5. Bg2 {[%clk 0:02:49.1]}
5... O-O {[%clk 0:02:58.4]} 6. O-O {[%clk 0:02:47.1]} 6... a5 {[%clk 0:02:58.3]}
7. Nc3 {[%clk 0:02:42.4]} 7... c6 {[%clk 0:02:58.1]} 8. Qc2 {[%clk 0:02:38.2]}
8... b6 {[%clk 0:02:55.4]} 9. e4 {[%clk 0:02:21.9]} 9... Ba6 {[%clk 0:02:45.8]}
10. e5 {[%clk 0:02:14.5]} 10... Nfd7 {[%clk 0:02:43.7]} 11. b3 {[%clk
0:01:51.9]} 11... dxc4 {[%clk 0:02:42.7]} 12. bxc4 {[%clk 0:01:50.9]} 12... Bxc4
{[%clk 0:02:42]} 13. Rd1 {[%clk 0:01:49]} 13... h6 {[%clk 0:02:26.6]} 14. g4
{[%clk 0:01:44.9]} 14... Na6 {[%clk 0:02:23.4]} 15. Ne4 {[%clk 0:01:39.8]} 15...
Bd5 {[%clk 0:02:21]} 16. a3 {[%clk 0:01:34]} 16... a4 {[%clk 0:02:10.1]} 17. g5
{[%clk 0:01:34]} 17... Bb3 {[%clk 0:02:04.2]} 18. Qe2 {[%clk 0:01:11.6]} 18...
Bxd1 {[%clk 0:01:58.9]} 19. Qxd1 {[%clk 0:01:11.4]} 19... hxg5 {[%clk
0:01:44.6]} 20. Nfxg5 {[%clk 0:01:06]} 20... g6 {[%clk 0:01:25.3]} 21. Qg4
{[%clk 0:01:05.4]} 21... Kg7 {[%clk 0:01:15.7]} 22. Qh3 {[%clk 0:00:43.9]} 22...
Rh8 {[%clk 0:01:12.1]} 23. Qf3 {[%clk 0:00:40.5]} 23... Qe8 {[%clk 0:00:43.2]}
24. Be3 {[%clk 0:00:21.3]} 24... Nc7 {[%clk 0:00:38.4]} 25. Rc1 {[%clk
0:00:19.7]} 25... c5 {[%clk 0:00:33.1]} 26. Nd6 {[%clk 0:00:19.7]} 26... Bxd6
{[%clk 0:00:30.5]} 27. exd6 {[%clk 0:00:19.8]} 27... Nd5 {[%clk 0:00:30.3]} 28.
dxc5 {[%clk 0:00:20]} 28... bxc5 {[%clk 0:00:25.9]} 29. Bxc5 {[%clk 0:00:13]}
29... Rh5 {[%clk 0:00:21.8]} 30. Bd4+ {[%clk 0:00:12.6]} 30... Kg8 {[%clk
0:00:17.1]} 31. Ne4 {[%clk 0:00:11.2]} 31... Rf5 {[%clk 0:00:15.6]} 32. Qh3
{[%clk 0:00:10]} 32... Qf8 {[%clk 0:00:14.4]} 33. Qh8# {[%clk 0:00:09.6]} 1-0